[Event "*** Titled Tuesday Blitz"]
[Site "Chess.com"]
[Date "2021.04.20"]
[Round "8"]
[White "Abund"]
[Black "KeithArkell"]
[Result "1-0"]
[WhiteElo "2742"]
[BlackElo "2608"]
[TimeControl "180+1"]
[EndTime "11:24:45 PDT"]
[Termination "Abund won by resignation"]

1. e4 {[%clk 0:03:00.9]} 1... c6 {[%clk 0:03:00.1]} 2. d4 {[%clk 0:03:00.6]}
2... d5 {[%clk 0:03:00.4]} 3. e5 {[%clk 0:03:01]} 3... c5 {[%clk 0:03:00.7]} 4.
dxc5 {[%clk 0:03:00.6]} 4... Nc6 {[%clk 0:03:01]} 5. f4 {[%clk 0:03:00.9]} 5...
e6 {[%clk 0:02:57.2]} 6. Be3 {[%clk 0:02:57.1]} 6... d4 {[%clk 0:02:57.5]} 7.
Bf2 {[%clk 0:02:56.4]} 7... Bxc5 {[%clk 0:02:57.7]} 8. Nd2 {[%clk 0:02:48.3]}
8... Nge7 {[%clk 0:02:57.2]} 9. Ne4 {[%clk 0:02:41.9]} 9... Bb4+ {[%clk
0:02:55]} 10. c3 {[%clk 0:02:40.3]} 10... dxc3 {[%clk 0:02:54.5]} 11. Qxd8+
{[%clk 0:02:33.8]} 11... Nxd8 {[%clk 0:02:38.8]} 12. bxc3 {[%clk 0:02:29.8]}
12... Ba5 {[%clk 0:02:39]} 13. Bb5+ {[%clk 0:02:22.4]} 13... Ndc6 {[%clk
0:02:33.3]} 14. Nd6+ {[%clk 0:02:21.7]} 14... Kf8 {[%clk 0:02:32.9]} 15. Ne2
{[%clk 0:02:21.7]} 15... Rb8 {[%clk 0:02:30]} 16. Bc5 {[%clk 0:02:11.2]} 16...
Bd7 {[%clk 0:02:28.2]} 17. O-O-O {[%clk 0:02:03]} 17... g5 {[%clk 0:02:17.3]}
18. Nxf7 {[%clk 0:01:57]} 18... Kxf7 {[%clk 0:02:08.2]} 19. Rxd7 {[%clk
0:01:56.4]} 19... Rhe8 {[%clk 0:01:59.6]} 20. fxg5 {[%clk 0:01:50.9]} 20... Kg8
{[%clk 0:01:39.1]} 21. Nf4 {[%clk 0:01:38.1]} 21... Ng6 {[%clk 0:01:32.3]} 22.
Nh5 {[%clk 0:01:36.2]} 22... Bd8 {[%clk 0:01:26.7]} 23. Bd6 {[%clk 0:01:20]}
23... Bxg5+ {[%clk 0:01:25.9]} 24. Kb2 {[%clk 0:01:17.9]} 24... Rbc8 {[%clk
0:01:20.1]} 25. Rxb7 {[%clk 0:01:10.3]} 25... Ncxe5 {[%clk 0:01:16.2]} 26. Bxe5
{[%clk 0:01:04.9]} 26... Nxe5 {[%clk 0:01:13.9]} 27. Bxe8 {[%clk 0:01:02.8]}
27... Rxe8 {[%clk 0:01:14]} 28. Rg7+ {[%clk 0:00:56.9]} 1-0

[Event "*** Titled Tuesday Blitz"]
[Site "Chess.com"]
[Date "2021.04.20"]
[Round "8"]
[White "allejam"]
[Black "AnnaChessLook"]
[Result "0-1"]
[WhiteElo "2150"]
[BlackElo "2243"]
[TimeControl "180+1"]
[EndTime "11:24:51 PDT"]
[Termination "AnnaChessLook won by checkmate"]

1. e4 {[%clk 0:03:00.9]} 1... c5 {[%clk 0:03:00.1]} 2. d4 {[%clk 0:02:50.9]}
2... cxd4 {[%clk 0:02:59.7]} 3. c3 {[%clk 0:02:49]} 3... d3 {[%clk 0:02:59.9]}
4. Bxd3 {[%clk 0:02:48.8]} 4... g6 {[%clk 0:02:59.6]} 5. c4 {[%clk 0:02:49.7]}
5... Bg7 {[%clk 0:03:00]} 6. Nc3 {[%clk 0:02:50.6]} 6... d6 {[%clk 0:03:00.3]}
7. Nge2 {[%clk 0:02:50.1]} 7... Nf6 {[%clk 0:03:00.7]} 8. O-O {[%clk 0:02:50.2]}
8... O-O {[%clk 0:03:01.3]} 9. h3 {[%clk 0:02:50.9]} 9... Nc6 {[%clk 0:03:01.7]}
10. Be3 {[%clk 0:02:50.9]} 10... Be6 {[%clk 0:02:58]} 11. b3 {[%clk 0:02:48.1]}
11... Qa5 {[%clk 0:02:56.6]} 12. Rc1 {[%clk 0:02:47.5]} 12... a6 {[%clk
0:02:55.5]} 13. f4 {[%clk 0:02:46.6]} 13... Rfc8 {[%clk 0:02:53]} 14. f5 {[%clk
0:02:42.6]} 14... Bd7 {[%clk 0:02:51.6]} 15. fxg6 {[%clk 0:02:41.8]} 15... hxg6
{[%clk 0:02:51]} 16. Nd4 {[%clk 0:02:37.5]} 16... Nxd4 {[%clk 0:02:46.5]} 17.
Bxd4 {[%clk 0:02:36.2]} 17... Be6 {[%clk 0:02:20.8]} 18. Na4 {[%clk 0:02:21]}
18... Nd7 {[%clk 0:02:12.5]} 19. Bxg7 {[%clk 0:02:13.6]} 19... Kxg7 {[%clk
0:02:13.4]} 20. Qe2 {[%clk 0:01:55.3]} 20... Ne5 {[%clk 0:02:02.7]} 21. Bb1
{[%clk 0:01:54.4]} 21... b5 {[%clk 0:01:56.1]} 22. cxb5 {[%clk 0:01:50.8]} 22...
axb5 {[%clk 0:01:57]} 23. Nc3 {[%clk 0:01:48.2]} 23... Rxc3 {[%clk 0:01:54.3]}
24. Rxc3 {[%clk 0:01:03.7]} 24... Qxc3 {[%clk 0:01:53.1]} 25. Qxb5 {[%clk
0:01:04.1]} 25... Qg3 {[%clk 0:01:37.9]} 26. Kh1 {[%clk 0:00:35.3]} 26... Bxh3
{[%clk 0:01:32.9]} 27. gxh3 {[%clk 0:00:31.6]} 27... Qxh3+ {[%clk 0:01:32.2]}
28. Kg1 {[%clk 0:00:31.2]} 28... Qg3+ {[%clk 0:01:32.5]} 29. Kh1 {[%clk
0:00:31]} 29... Rh8# {[%clk 0:01:33.1]} 0-1

[Event "*** Titled Tuesday Blitz"]
[Site "Chess.com"]
[Date "2021.04.20"]
[Round "8"]
[White "AEMEffi"]
[Black "Deepweb2020"]
[Result "1-0"]
[WhiteElo "2342"]
[BlackElo "2470"]
[TimeControl "180+1"]
[EndTime "11:24:59 PDT"]
[Termination "AEMEffi won by checkmate"]

1. d4 {[%clk 0:03:00.9]} 1... Nf6 {[%clk 0:02:58.9]} 2. c4 {[%clk 0:03:00.6]}
2... e6 {[%clk 0:02:57.5]} 3. Nc3 {[%clk 0:03:01.1]} 3... Bb4 {[%clk 0:02:57.5]}
4. e3 {[%clk 0:03:02]} 4... b6 {[%clk 0:02:57.7]} 5. f3 {[%clk 0:03:01.6]} 5...
c5 {[%clk 0:02:57.1]} 6. d5 {[%clk 0:03:01.7]} 6... exd5 {[%clk 0:02:56.5]} 7.
cxd5 {[%clk 0:03:02.6]} 7... Bb7 {[%clk 0:02:57.1]} 8. e4 {[%clk 0:03:02.9]}
8... O-O {[%clk 0:02:56.4]} 9. Nh3 {[%clk 0:03:03.2]} 9... d6 {[%clk 0:02:55.2]}
10. Be2 {[%clk 0:03:00.8]} 10... Nbd7 {[%clk 0:02:51.8]} 11. O-O {[%clk
0:03:00]} 11... Bxc3 {[%clk 0:02:50.2]} 12. bxc3 {[%clk 0:02:59.6]} 12... Ne5
{[%clk 0:02:50.6]} 13. f4 {[%clk 0:02:53.5]} 13... Ng6 {[%clk 0:02:50.6]} 14.
Nf2 {[%clk 0:02:46.2]} 14... Re8 {[%clk 0:02:48.8]} 15. Bd3 {[%clk 0:02:35.2]}
15... c4 {[%clk 0:02:47]} 16. Bc2 {[%clk 0:02:34.9]} 16... Nd7 {[%clk
0:02:38.2]} 17. Qd4 {[%clk 0:02:32.9]} 17... b5 {[%clk 0:02:35.7]} 18. a4 {[%clk
0:02:30.4]} 18... a6 {[%clk 0:02:35.7]} 19. Ba3 {[%clk 0:02:19.4]} 19... Qc7
{[%clk 0:02:30]} 20. g3 {[%clk 0:02:17.9]} 20... Nc5 {[%clk 0:02:16]} 21. Bxc5
{[%clk 0:01:52.6]} 21... Qxc5 {[%clk 0:02:14.5]} 22. Qxc5 {[%clk 0:01:49.9]}
22... dxc5 {[%clk 0:02:15.4]} 23. Rfb1 {[%clk 0:01:48.3]} 23... f5 {[%clk
0:02:04.5]} 24. axb5 {[%clk 0:01:40.5]} 24... fxe4 {[%clk 0:01:58.3]} 25. Bxe4
{[%clk 0:01:30]} 25... Ne7 {[%clk 0:01:49.5]} 26. d6 {[%clk 0:00:41.1]} 26...
Bxe4 {[%clk 0:01:33.2]} 27. Nxe4 {[%clk 0:00:42]} 27... Nf5 {[%clk 0:01:34.1]}
28. Nxc5 {[%clk 0:00:41.4]} 28... axb5 {[%clk 0:01:28.9]} 29. d7 {[%clk
0:00:38.8]} 29... Rxa1 {[%clk 0:01:23.4]} 30. dxe8=Q# {[%clk 0:00:37]} 1-0

[Event "*** Titled Tuesday Blitz"]
[Site "Chess.com"]
[Date "2021.04.20"]
[Round "8"]
[White "kidagent"]
[Black "buhomurciano"]
[Result "1-0"]
[WhiteElo "2334"]
[BlackElo "2185"]
[TimeControl "180+1"]
[EndTime "11:25:14 PDT"]
[Termination "kidagent won by resignation"]

1. e4 {[%clk 0:03:00.9]} 1... e5 {[%clk 0:02:51.5]} 2. Nf3 {[%clk 0:03:01]} 2...
Nc6 {[%clk 0:02:50.8]} 3. Bb5 {[%clk 0:03:01.6]} 3... Nge7 {[%clk 0:02:46.9]} 4.
O-O {[%clk 0:03:00]} 4... a6 {[%clk 0:02:46.6]} 5. Ba4 {[%clk 0:03:00]} 5... g6
{[%clk 0:02:46.2]} 6. c3 {[%clk 0:02:59.8]} 6... Bg7 {[%clk 0:02:46.1]} 7. d4
{[%clk 0:02:58]} 7... b5 {[%clk 0:02:42.8]} 8. Bb3 {[%clk 0:02:56.7]} 8... d6
{[%clk 0:02:41.8]} 9. Re1 {[%clk 0:02:55.2]} 9... O-O {[%clk 0:02:36.9]} 10. a4
{[%clk 0:02:55.4]} 10... Rb8 {[%clk 0:02:27.6]} 11. axb5 {[%clk 0:02:49.4]}
11... axb5 {[%clk 0:02:27.2]} 12. d5 {[%clk 0:02:46.7]} 12... Bd7 {[%clk
0:01:13.3]} 13. dxc6 {[%clk 0:02:44.5]} 13... Bxc6 {[%clk 0:01:11.2]} 14. Bg5
{[%clk 0:02:39.9]} 14... h6 {[%clk 0:01:10]} 15. Bxe7 {[%clk 0:02:38.5]} 15...
Qxe7 {[%clk 0:01:10.9]} 16. Nbd2 {[%clk 0:02:35.7]} 16... Kh7 {[%clk 0:01:08.2]}
17. Qe2 {[%clk 0:02:24.8]} 17... f5 {[%clk 0:01:03.9]} 18. exf5 {[%clk
0:02:22.4]} 18... gxf5 {[%clk 0:01:02]} 19. Ra7 {[%clk 0:02:12]} 19... b4 {[%clk
0:00:48.4]} 20. Qc4 {[%clk 0:02:05.7]} 20... Qd7 {[%clk 0:00:26.5]} 21. Qe6
{[%clk 0:01:57.7]} 21... Qd8 {[%clk 0:00:22.4]} 22. Bc2 {[%clk 0:01:49.3]} 22...
e4 {[%clk 0:00:20.5]} 23. Nd4 {[%clk 0:01:46.4]} 23... Bd7 {[%clk 0:00:20.5]}
24. Qc4 {[%clk 0:01:44.7]} 24... c5 {[%clk 0:00:18.3]} 25. Ne2 {[%clk
0:01:33.9]} 25... Bc6 {[%clk 0:00:14.8]} 26. Nf4 {[%clk 0:01:30.6]} 26... Qf6
{[%clk 0:00:13]} 27. Nh5 {[%clk 0:01:27.8]} 1-0

[Event "*** Titled Tuesday Blitz"]
[Site "Chess.com"]
[Date "2021.04.20"]
[Round "8"]
[White "viktorgen2021"]
[Black "QuintilianoR"]
[Result "0-1"]
[WhiteElo "2365"]
[BlackElo "2668"]
[TimeControl "180+1"]
[EndTime "11:25:16 PDT"]
[Termination "QuintilianoR won by checkmate"]

1. e4 {[%clk 0:02:59.6]} 1... c5 {[%clk 0:02:59.4]} 2. Nf3 {[%clk 0:02:59.1]}
2... d6 {[%clk 0:02:59.8]} 3. d3 {[%clk 0:02:51.8]} 3... Nf6 {[%clk 0:02:59.7]}
4. g3 {[%clk 0:02:52.1]} 4... g6 {[%clk 0:02:59.6]} 5. Bg2 {[%clk 0:02:52.4]}
5... Nc6 {[%clk 0:03:00.2]} 6. O-O {[%clk 0:02:52.6]} 6... Bg7 {[%clk
0:03:00.8]} 7. Nbd2 {[%clk 0:02:52.4]} 7... O-O {[%clk 0:03:00.8]} 8. Re1 {[%clk
0:02:52.9]} 8... e5 {[%clk 0:02:58.4]} 9. c3 {[%clk 0:02:51.1]} 9... Rb8 {[%clk
0:02:51]} 10. a4 {[%clk 0:02:50.8]} 10... Re8 {[%clk 0:02:48.9]} 11. Qc2 {[%clk
0:02:49.4]} 11... a6 {[%clk 0:02:43.9]} 12. Nf1 {[%clk 0:02:39.5]} 12... b5
{[%clk 0:02:39]} 13. Ne3 {[%clk 0:02:38.9]} 13... h6 {[%clk 0:02:29.7]} 14. Nd2
{[%clk 0:02:37.9]} 14... Be6 {[%clk 0:02:25.6]} 15. axb5 {[%clk 0:02:31.5]}
15... axb5 {[%clk 0:02:24.3]} 16. Nd5 {[%clk 0:02:31.5]} 16... Bxd5 {[%clk
0:02:21.4]} 17. exd5 {[%clk 0:02:31.3]} 17... Ne7 {[%clk 0:02:22]} 18. c4 {[%clk
0:02:31.4]} 18... Nf5 {[%clk 0:02:21.9]} 19. Nf3 {[%clk 0:02:18]} 19... bxc4
{[%clk 0:02:19.9]} 20. dxc4 {[%clk 0:02:17.4]} 20... e4 {[%clk 0:02:11.1]} 21.
Nd2 {[%clk 0:01:59.8]} 21... e3 {[%clk 0:02:05.9]} 22. fxe3 {[%clk 0:01:29.4]}
22... Nxe3 {[%clk 0:02:02.5]} 23. Qd3 {[%clk 0:01:28.9]} 23... Nxg2 {[%clk
0:01:58.7]} 24. Rxe8+ {[%clk 0:01:27]} 24... Qxe8 {[%clk 0:01:58.2]} 25. Kxg2
{[%clk 0:01:27.5]} 25... Ng4 {[%clk 0:01:39.8]} 26. Nb3 {[%clk 0:01:14.6]} 26...
Rxb3 {[%clk 0:01:17.3]} 27. Qxb3 {[%clk 0:01:04.4]} 27... Qe2+ {[%clk
0:01:15.4]} 28. Kh3 {[%clk 0:01:04.7]} 28... Nf2+ {[%clk 0:01:02.6]} 29. Kg2
{[%clk 0:01:02.7]} 29... Ne4+ {[%clk 0:01:01.3]} 30. Kh3 {[%clk 0:00:56.9]}
30... Qf1+ {[%clk 0:00:59.8]} 31. Kh4 {[%clk 0:00:52.9]} 31... Bf6+ {[%clk
0:00:58.3]} 32. Kg4 {[%clk 0:00:49.1]} 32... Qf5# {[%clk 0:00:57.1]} 0-1

[Event "*** Titled Tuesday Blitz"]
[Site "Chess.com"]
[Date "2021.04.20"]
[Round "8"]
[White "ChristopherYoo"]
[Black "Murad_Ibrahimli"]
[Result "1-0"]
[WhiteElo "2888"]
[BlackElo "2745"]
[TimeControl "180+1"]
[EndTime "11:25:23 PDT"]
[Termination "ChristopherYoo won by resignation"]

1. e4 {[%clk 0:02:30.1]} 1... e5 {[%clk 0:02:58.2]} 2. Nf3 {[%clk 0:02:30.3]}
2... Nc6 {[%clk 0:02:57.6]} 3. Bb5 {[%clk 0:02:30.3]} 3... a6 {[%clk 0:02:57.8]}
4. Ba4 {[%clk 0:02:30.7]} 4... Nf6 {[%clk 0:02:58]} 5. d4 {[%clk 0:02:30.7]}
5... exd4 {[%clk 0:02:53.4]} 6. O-O {[%clk 0:02:29.9]} 6... Be7 {[%clk
0:02:52.1]} 7. e5 {[%clk 0:02:29.2]} 7... Nd5 {[%clk 0:02:50.3]} 8. Nxd4 {[%clk
0:02:27]} 8... Nb6 {[%clk 0:02:29.3]} 9. Nf5 {[%clk 0:02:24.9]} 9... g6 {[%clk
0:02:08.7]} 10. Nxe7 {[%clk 0:02:20.3]} 10... Qxe7 {[%clk 0:02:07.4]} 11. Nc3
{[%clk 0:02:20.4]} 11... Nxa4 {[%clk 0:02:05.7]} 12. Nd5 {[%clk 0:02:19]} 12...
Qh4 {[%clk 0:01:08.1]} 13. Nxc7+ {[%clk 0:02:14.1]} 13... Kf8 {[%clk 0:01:08.6]}
14. Nxa8 {[%clk 0:02:11.1]} 14... Kg7 {[%clk 0:01:05.9]} 15. Nc7 {[%clk
0:02:04.3]} 15... d5 {[%clk 0:01:02.1]} 16. exd6 {[%clk 0:01:59.1]} 16... Bd7
{[%clk 0:01:00.2]} 17. Nd5 {[%clk 0:01:56.5]} 17... Be6 {[%clk 0:00:53.3]} 18.
Nf4 {[%clk 0:01:46.6]} 18... Bf5 {[%clk 0:00:49.2]} 19. b3 {[%clk 0:01:33.4]}
19... Nc3 {[%clk 0:00:44.6]} 20. Bb2 {[%clk 0:01:32.1]} 20... Qxf4 {[%clk
0:00:38.5]} 21. Bxc3+ {[%clk 0:01:31.9]} 21... f6 {[%clk 0:00:39.4]} 22. g3
{[%clk 0:01:22.2]} 22... Qg5 {[%clk 0:00:36.2]} 23. h4 {[%clk 0:01:19.1]} 23...
Qg4 {[%clk 0:00:29.3]} 24. Qxg4 {[%clk 0:01:12.7]} 24... Bxg4 {[%clk 0:00:30.2]}
25. f3 {[%clk 0:01:13.2]} 25... Bd7 {[%clk 0:00:29.1]} 26. Rad1 {[%clk
0:01:11.4]} 26... Kf7 {[%clk 0:00:29.6]} 27. Rfe1 {[%clk 0:01:11.7]} 27... h5
{[%clk 0:00:29.8]} 28. Kf2 {[%clk 0:01:11.9]} 28... Rc8 {[%clk 0:00:28.9]} 29.
Re2 {[%clk 0:01:10.9]} 29... Bf5 {[%clk 0:00:26.4]} 30. d7 {[%clk 0:01:08.6]}
30... Rd8 {[%clk 0:00:23.9]} 31. Rd6 {[%clk 0:01:08.5]} 1-0

[Event "*** Titled Tuesday Blitz"]
[Site "Chess.com"]
[Date "2021.04.20"]
[Round "8"]
[White "olksuna"]
[Black "svilson23"]
[Result "1-0"]
[WhiteElo "2648"]
[BlackElo "2278"]
[TimeControl "180+1"]
[EndTime "11:25:24 PDT"]
[Termination "olksuna won by resignation"]

1. e4 {[%clk 0:03:00.9]} 1... c6 {[%clk 0:02:55.9]} 2. Nf3 {[%clk 0:02:59.2]}
2... d5 {[%clk 0:02:56.1]} 3. Nc3 {[%clk 0:02:59.7]} 3... Bg4 {[%clk 0:02:55.9]}
4. h3 {[%clk 0:02:59.6]} 4... Bh5 {[%clk 0:02:52.4]} 5. exd5 {[%clk 0:02:59]}
5... cxd5 {[%clk 0:02:52]} 6. Bb5+ {[%clk 0:02:59.3]} 6... Nc6 {[%clk
0:02:49.4]} 7. g4 {[%clk 0:03:00.2]} 7... Bg6 {[%clk 0:02:48.8]} 8. Ne5 {[%clk
0:03:00.3]} 8... Qd6 {[%clk 0:02:45.4]} 9. d4 {[%clk 0:02:53.6]} 9... f6 {[%clk
0:02:40.4]} 10. Nxg6 {[%clk 0:02:47.2]} 10... hxg6 {[%clk 0:02:41.3]} 11. Qd3
{[%clk 0:02:46.8]} 11... Kf7 {[%clk 0:02:38.9]} 12. Nxd5 {[%clk 0:02:37.5]}
12... e6 {[%clk 0:02:39.3]} 13. Nf4 {[%clk 0:02:34.1]} 13... Nge7 {[%clk
0:02:32.2]} 14. Bc4 {[%clk 0:02:18]} 14... Nxd4 {[%clk 0:02:23.6]} 15. Nxe6
{[%clk 0:01:40.8]} 15... Qe5+ {[%clk 0:02:12.4]} 16. Kd1 {[%clk 0:01:40.7]}
16... Nxe6 {[%clk 0:02:08.5]} 17. Re1 {[%clk 0:01:38.4]} 17... Nc6 {[%clk
0:01:40.8]} 18. Qd7+ {[%clk 0:01:27.1]} 18... Be7 {[%clk 0:01:36.6]} 19. Bxe6+
{[%clk 0:01:19.2]} 19... Kf8 {[%clk 0:01:33.8]} 20. Rxe5 {[%clk 0:01:17.4]}
20... fxe5 {[%clk 0:01:30.7]} 21. Qxb7 {[%clk 0:01:11.7]} 21... Rd8+ {[%clk
0:01:24.9]} 22. Bd2 {[%clk 0:01:08.8]} 22... Nd4 {[%clk 0:01:25.4]} 23. Bd5
{[%clk 0:00:51.2]} 23... Rxh3 {[%clk 0:00:57]} 24. c3 {[%clk 0:00:49.3]} 24...
Nf3 {[%clk 0:00:57]} 25. Bxf3 {[%clk 0:00:46.3]} 25... Bg5 {[%clk 0:00:57.6]}
26. Bd5 {[%clk 0:00:28.9]} 1-0

[Event "*** Titled Tuesday Blitz"]
[Site "Chess.com"]
[Date "2021.04.20"]
[Round "8"]
[White "BvsN"]
[Black "Grandmaster1369"]
[Result "1-0"]
[WhiteElo "2376"]
[BlackElo "2574"]
[TimeControl "180+1"]
[EndTime "11:25:27 PDT"]
[Termination "BvsN won by checkmate"]

1. c4 {[%clk 0:03:00.9]} 1... e5 {[%clk 0:02:58.5]} 2. Nc3 {[%clk 0:03:01.2]}
2... Nf6 {[%clk 0:02:57.1]} 3. Nf3 {[%clk 0:03:01.1]} 3... Nc6 {[%clk
0:02:57.7]} 4. e3 {[%clk 0:03:01.4]} 4... Bb4 {[%clk 0:02:55.4]} 5. Qc2 {[%clk
0:03:01.4]} 5... Bxc3 {[%clk 0:02:53.4]} 6. Qxc3 {[%clk 0:03:00.9]} 6... d5
{[%clk 0:02:49.7]} 7. Nxe5 {[%clk 0:02:56]} 7... Ne4 {[%clk 0:02:19.5]} 8. Nxc6
{[%clk 0:02:41.8]} 8... Nxc3 {[%clk 0:02:15.6]} 9. Nxd8 {[%clk 0:02:41.4]} 9...
Ne4 {[%clk 0:02:15.8]} 10. Nxf7 {[%clk 0:02:29.8]} 10... Kxf7 {[%clk 0:02:14.5]}
11. cxd5 {[%clk 0:02:30.3]} 11... Rd8 {[%clk 0:02:14]} 12. f3 {[%clk 0:02:30.1]}
12... Nd6 {[%clk 0:02:13.9]} 13. e4 {[%clk 0:02:29.8]} 13... c6 {[%clk
0:02:13.4]} 14. e5 {[%clk 0:02:17.5]} 14... Nf5 {[%clk 0:02:11.3]} 15. d6 {[%clk
0:02:15]} 15... Be6 {[%clk 0:02:10.9]} 16. Bd3 {[%clk 0:02:05.4]} 16... Nd4
{[%clk 0:02:10.5]} 17. O-O {[%clk 0:02:02.3]} 17... h5 {[%clk 0:02:06.6]} 18. f4
{[%clk 0:01:59.9]} 18... Bd5 {[%clk 0:02:05.9]} 19. b3 {[%clk 0:01:51.2]} 19...
Re8 {[%clk 0:02:05.5]} 20. Bb2 {[%clk 0:01:48.8]} 20... Ne6 {[%clk 0:02:03.4]}
21. f5 {[%clk 0:01:42.1]} 21... Nc5 {[%clk 0:02:03.5]} 22. Bc2 {[%clk
0:01:17.8]} 22... a5 {[%clk 0:01:55.6]} 23. Rae1 {[%clk 0:01:15.6]} 23... Rad8
{[%clk 0:01:52.8]} 24. e6+ {[%clk 0:01:13.8]} 24... Kg8 {[%clk 0:01:53.4]} 25.
d7 {[%clk 0:00:57.6]} 25... Re7 {[%clk 0:01:41]} 26. Be5 {[%clk 0:00:45]} 26...
Nxe6 {[%clk 0:01:30.1]} 27. fxe6 {[%clk 0:00:44.9]} 27... Rxe6 {[%clk
0:01:30.7]} 28. Bf5 {[%clk 0:00:34.3]} 28... Re7 {[%clk 0:01:24.5]} 29. Bc7
{[%clk 0:00:32.8]} 29... Rxe1 {[%clk 0:01:23.3]} 30. Rxe1 {[%clk 0:00:32]} 30...
Rf8 {[%clk 0:01:22.4]} 31. d8=Q {[%clk 0:00:31.8]} 31... Rxd8 {[%clk 0:01:23.3]}
32. Bxd8 {[%clk 0:00:32.2]} 32... a4 {[%clk 0:01:24.2]} 33. Be6+ {[%clk
0:00:32.2]} 33... Bxe6 {[%clk 0:01:24.1]} 34. Rxe6 {[%clk 0:00:32.5]} 34... axb3
{[%clk 0:01:25]} 35. axb3 {[%clk 0:00:32.5]} 35... c5 {[%clk 0:01:25.9]} 36. Rb6
{[%clk 0:00:32.4]} 36... c4 {[%clk 0:01:26.8]} 37. bxc4 {[%clk 0:00:32.3]} 37...
g5 {[%clk 0:01:27.1]} 38. Rxb7 {[%clk 0:00:32.5]} 38... g4 {[%clk 0:01:28]} 39.
Bg5 {[%clk 0:00:32.4]} 39... g3 {[%clk 0:01:28.9]} 40. hxg3 {[%clk 0:00:32.5]}
40... h4 {[%clk 0:01:29.3]} 41. gxh4 {[%clk 0:00:32.9]} 41... Kf8 {[%clk
0:01:29.7]} 42. Kf2 {[%clk 0:00:33.4]} 42... Kg8 {[%clk 0:01:30.6]} 43. Kf3
{[%clk 0:00:34]} 43... Kf8 {[%clk 0:01:31.5]} 44. Kf4 {[%clk 0:00:34.6]} 44...
Kg8 {[%clk 0:01:32.4]} 45. Kf5 {[%clk 0:00:35.2]} 45... Kh8 {[%clk 0:01:33.3]}
46. Kg6 {[%clk 0:00:35.4]} 46... Kg8 {[%clk 0:01:34.2]} 47. Rb8# {[%clk
0:00:36]} 1-0

[Event "*** Titled Tuesday Blitz"]
[Site "Chess.com"]
[Date "2021.04.20"]
[Round "8"]
[White "ViktoriyaTarasova"]
[Black "chesshermar"]
[Result "1-0"]
[WhiteElo "2433"]
[BlackElo "2231"]
[TimeControl "180+1"]
[EndTime "11:25:32 PDT"]
[Termination "ViktoriyaTarasova won by resignation"]

1. d4 {[%clk 0:03:00.9]} 1... Nf6 {[%clk 0:02:59.6]} 2. c4 {[%clk 0:03:01.1]}
2... g6 {[%clk 0:02:59.9]} 3. Nc3 {[%clk 0:03:01.3]} 3... Bg7 {[%clk 0:03:00.4]}
4. e4 {[%clk 0:03:01.3]} 4... d6 {[%clk 0:03:00.8]} 5. h3 {[%clk 0:03:01.4]}
5... O-O {[%clk 0:03:00.9]} 6. Be3 {[%clk 0:03:01]} 6... e5 {[%clk 0:03:01]} 7.
d5 {[%clk 0:03:01.1]} 7... a5 {[%clk 0:03:00.8]} 8. g4 {[%clk 0:03:01]} 8... Na6
{[%clk 0:03:00.7]} 9. Be2 {[%clk 0:03:01.1]} 9... Nd7 {[%clk 0:02:56.4]} 10. Qc2
{[%clk 0:03:00.4]} 10... Ndc5 {[%clk 0:02:50.3]} 11. O-O-O {[%clk 0:02:53.6]}
11... Bd7 {[%clk 0:02:42]} 12. f3 {[%clk 0:02:49.3]} 12... a4 {[%clk 0:02:39.1]}
13. h4 {[%clk 0:02:45.2]} 13... Nb4 {[%clk 0:02:39.4]} 14. Qb1 {[%clk
0:02:41.9]} 14... f5 {[%clk 0:02:23.2]} 15. gxf5 {[%clk 0:02:26.7]} 15... gxf5
{[%clk 0:02:20.8]} 16. Bg5 {[%clk 0:02:20.8]} 16... Qe8 {[%clk 0:02:15.9]} 17.
Nh3 {[%clk 0:01:55.3]} 17... Nb3+ {[%clk 0:02:11.9]} 18. axb3 {[%clk 0:01:53.7]}
18... axb3 {[%clk 0:02:12.8]} 19. Kd2 {[%clk 0:01:48.2]} 19... fxe4 {[%clk
0:02:08.8]} 20. fxe4 {[%clk 0:01:45.7]} 20... Nc2 {[%clk 0:02:08.6]} 21. Rdg1
{[%clk 0:01:04.9]} 21... Bxh3 {[%clk 0:01:53.3]} 22. Rxh3 {[%clk 0:01:00.9]}
22... Rf2 {[%clk 0:01:37]} 23. Bh6 {[%clk 0:00:50.6]} 23... Rxe2+ {[%clk
0:01:36.9]} 24. Nxe2 {[%clk 0:00:48.1]} 24... Ra1 {[%clk 0:01:24.4]} 25. Rxg7+
{[%clk 0:00:40.5]} 25... Kh8 {[%clk 0:01:22.9]} 26. Qxa1 {[%clk 0:00:35.8]}
26... Nxa1 {[%clk 0:01:22.7]} 27. Rf3 {[%clk 0:00:28.8]} 27... Qa8 {[%clk
0:01:01.7]} 28. Rgf7 {[%clk 0:00:27.2]} 1-0

[Event "*** Titled Tuesday Blitz"]
[Site "Chess.com"]
[Date "2021.04.20"]
[Round "8"]
[White "beautroll"]
[Black "ZAbdumalik"]
[Result "1-0"]
[WhiteElo "2476"]
[BlackElo "2613"]
[TimeControl "180+1"]
[EndTime "11:25:48 PDT"]
[Termination "beautroll won by resignation"]

1. e4 {[%clk 0:03:00.9]} 1... e5 {[%clk 0:02:44.5]} 2. Nf3 {[%clk 0:03:00.5]}
2... Nc6 {[%clk 0:02:45.2]} 3. Bb5 {[%clk 0:03:00]} 3... a6 {[%clk 0:02:45.4]}
4. Ba4 {[%clk 0:03:00]} 4... Nf6 {[%clk 0:02:45.8]} 5. O-O {[%clk 0:02:59]} 5...
Be7 {[%clk 0:02:39.3]} 6. Re1 {[%clk 0:02:59]} 6... b5 {[%clk 0:02:31.5]} 7. Bb3
{[%clk 0:02:58.6]} 7... O-O {[%clk 0:02:32.4]} 8. a4 {[%clk 0:02:58.3]} 8... Bb7
{[%clk 0:02:31.8]} 9. c3 {[%clk 0:02:55.8]} 9... d5 {[%clk 0:02:26.3]} 10. exd5
{[%clk 0:02:53.3]} 10... Nxd5 {[%clk 0:02:26.3]} 11. axb5 {[%clk 0:02:40.6]}
11... axb5 {[%clk 0:02:27.2]} 12. Rxa8 {[%clk 0:02:39.4]} 12... Bxa8 {[%clk
0:02:28.1]} 13. Nxe5 {[%clk 0:02:15.2]} 13... Nxe5 {[%clk 0:02:29]} 14. Rxe5
{[%clk 0:02:16]} 14... Nf4 {[%clk 0:02:28.7]} 15. d4 {[%clk 0:02:12.7]} 15...
Nxg2 {[%clk 0:02:26.7]} 16. Qg4 {[%clk 0:02:09.1]} 16... Nh4 {[%clk 0:02:21.5]}
17. d5 {[%clk 0:01:58.9]} 17... Bf6 {[%clk 0:02:19.7]} 18. Rh5 {[%clk
0:01:51.9]} 18... Ng6 {[%clk 0:02:14.1]} 19. Be3 {[%clk 0:01:45.5]} 19... c6
{[%clk 0:02:09.2]} 20. Qh3 {[%clk 0:01:09.5]} 20... Bh4 {[%clk 0:02:01.3]} 21.
Nd2 {[%clk 0:00:57.5]} 21... Qc8 {[%clk 0:01:48.8]} 22. Rxh4 {[%clk 0:00:52.5]}
22... Nxh4 {[%clk 0:01:48.7]} 23. Qxh4 {[%clk 0:00:53.4]} 23... cxd5 {[%clk
0:01:49.5]} 24. Bc2 {[%clk 0:00:47.2]} 24... f5 {[%clk 0:01:46.6]} 25. Bd4
{[%clk 0:00:46.9]} 25... Qe6 {[%clk 0:01:45.7]} 26. Nf3 {[%clk 0:00:41.2]} 26...
Qg6+ {[%clk 0:01:43.8]} 27. Kf1 {[%clk 0:00:40.1]} 27... b4 {[%clk 0:01:42.2]}
28. Qe7 {[%clk 0:00:32]} 28... bxc3 {[%clk 0:01:37.9]} 29. bxc3 {[%clk
0:00:30.5]} 29... Bc6 {[%clk 0:01:36.2]} 30. Bd3 {[%clk 0:00:28.7]} 30... Re8
{[%clk 0:01:34.3]} 31. Qc7 {[%clk 0:00:28]} 31... Ba4 {[%clk 0:01:21.3]} 32. Ne5
{[%clk 0:00:26.8]} 32... Qh5 {[%clk 0:01:13.9]} 33. Be2 {[%clk 0:00:24.4]} 33...
Qxh2 {[%clk 0:01:08.4]} 34. Qf7+ {[%clk 0:00:23.1]} 34... Kh8 {[%clk 0:01:06.1]}
35. Ng6+ {[%clk 0:00:23.3]} 1-0